[Event "European Online Club-ch-G 2021"]
[Site "Online"]
[Date "2021.03.27"]
[Round "5.9"]
[White "Harvey, Marcus R"]
[Black "Grachev, Boris"]
[Result "0-1"]
[ECO "A12"]
[WhiteElo "2440"]
[BlackElo "2619"]
[Annotator "ChessBase"]
[PlyCount "126"]
[EventDate "2021.03.27"]
[EventType "team-tourn"]
[EventCountry "NET"]
[SourceTitle "playchess.com"]
[Source "ChessBase"]
[SourceQuality "1"]
[TimeControl "900+5"]

1. Nf3 {[%emt 0:00:00]} d5 {[%emt 0:00:04]} 2. b3 {[%emt 0:00:02]} Bg4 {[%emt 0:00:06]} 3. e3 {[%emt 0:00:01]} Nd7 {[%emt 0:00:11]} 4. h3 {[%emt 0:00:03]} Bh5 {[%emt 0:00:03]} 5. Bb2 {[%emt 0:00:01]} e6 {[%emt 0:00:03]} 6. Be2 {[%emt 0:00:04]} Ngf6 {[%emt 0:00:20]} 7. c4 {[%emt 0:00:02]} c6 {[%emt 0:00:05]} 8. Nc3 {[%emt 0:00:06]} Bd6 {[%emt 0:00:06]} 9. O-O {[%emt 0:00:07]} O-O {[%emt 0:00:04]} 10. d4 {[%emt 0:00:01]} Qe7 {[%emt 0:00:35]} 11. Ne5 {[%emt 0:00:03]} Bxe2 {[%emt 0:00:04]} 12. Nxe2 {[%emt 0:00:00]} Ba3 {[%emt 0:00:19]} 13. Bxa3 {[%emt 0:01:00]} Qxa3 {[%emt 0:00:02]} 14. Nxd7 {[%emt 0:00:01]} Nxd7 {[%emt 0:00:02]} 15. Qc1 {[%emt 0:00:02]} Qe7 {[%emt 0:00:08]} 16. Nc3 {[%emt 0:00:19]} Nf6 {[%emt 0:00:06]} 17. Rd1 {[%emt 0:00:25]} Rfd8 {[%emt 0:00:06]} 18. Qc2 {[%emt 0:00:18]} h6 {[%emt 0:00:12]} 19. c5 {[%emt 0:01:04]} e5 {[%emt 0:00:19]} 20. b4 {[%emt 0:00:08]} a6 {[%emt 0:00:12]} 21. a4 {[%emt 0:01:06]} exd4 {[%emt 0:00:08]} 22. exd4 {[%emt 0:00:03]} Re8 {[%emt 0:00:02]} 23. b5 {[%emt 0:00:47]} axb5 {[%emt 0:00:04]} 24. axb5 {[%emt 0:00:01]} Qe6 {[%emt 0:01:35]} 25. b6 {[%emt 0:00:57]} Nh5 {[%emt 0:01:41]} 26. Rxa8 {[%emt 0:00:08]} Rxa8 {[%emt 0:00:03]} 27. Qe2 {[%emt 0:00:14]} Nf4 {[%emt 0:00:37]} 28. Qxe6 {[%emt 0:00:05]} Nxe6 {[%emt 0:00:06]} 29. Kf1 {[%emt 0:01:59]} Ra3 {[%emt 0:00:24]} 30. Ne2 {[%emt 0:00:05]} Ra4 {[%emt 0:00:17]} 31. f4 {[%emt 0:00:30]} f5 {[%emt 0:00:39]} 32. g4 {[%emt 0:00:13]} g6 {[%emt 0:00:17]} 33. Kf2 {[%emt 0:01:36]} Kf7 {[%emt 0:00:31]} 34. Ke3 {[%emt 0:00:25]} Kf6 {[%emt 0:01:29]} 35. Nc3 {[%emt 0:01:47]} Ra3 {[%emt 0:00:12]} 36. Rd3 {[%emt 0:00:03]} Ra1 {[%emt 0:00:13]} 37. Rd1 {[%emt 0:00:09]} Ra3 {[%emt 0:01:20]} 38. Rd3 {[%emt 0:00:04]} Ra8 {[%emt 0:00:02]} 39. Rd2 {[%emt 0:00:08]} Re8 {[%emt 0:00:50]} 40. Kf3 {[%emt 0:00:03]} g5 {[%emt 0:00:05]} 41. Ne2 {[%emt 0:01:21]} gxf4 {[%emt 0:00:21]} 42. Nxf4 {[%emt 0:00:01]} Nxf4 {[%emt 0:00:17]} 43. Kxf4 {[%emt 0:00:00]} Re4+ {[%emt 0:00:02]} 44. Kf3 {[%emt 0:00:03]} fxg4+ {[%emt 0:00:04]} 45. hxg4 {[%emt 0:00:02]} Kg5 {[%emt 0:00:02]} 46. Ra2 {[%emt 0:00:28]} Rxd4 {[%emt 0:00:18]} 47. Ra7 {[%emt 0:00:22]} Rf4+ {[%emt 0:00:08]} 48. Ke3 {[%emt 0:00:11]} Rf7 {[%emt 0:00:03]} 49. Ra8 {[%emt 0:00:09]} Kxg4 {[%emt 0:00:13]} 50. Rc8 {[%emt 0:00:24]} Kf5 {[%emt 0:00:05]} 51. Rh8 {[%emt 0:00:45]} Kg6 {[%emt 0:00:04]} 52. Rg8+ {[%emt 0:00:02]} Rg7 {[%emt 0:00:42]} 53. Rh8 {[%emt 0:00:01]} Rh7 {[%emt 0:00:31]} 54. Rg8+ {[%emt 0:00:04]} Rg7 {[%emt 0:00:07]} 55. Rh8 {[%emt 0:00:02]} Kg5 {[%emt 0:00:21]} 56. Rc8 {[%emt 0:00:44]} h5 {[%emt 0:00:04]} 57. Rc7 {[%emt 0:00:02]} Kh6 {[%emt 0:00:43]} 58. Kf4 {[%emt 0:00:38]} h4 {[%emt 0:00:08]} 59. Rc8 {[%emt 0:00:11]} h3 {[%emt 0:00:11]} 60. Rh8+ {[%emt 0:00:08]} Rh7 {[%emt 0:00:02]} 61. Re8 {[%emt 0:00:05]} h2 {[%emt 0:00:09]} 62. Re6+ {[%emt 0:00:02]} Kg7 {[%emt 0:00:05]} 63. Re7+ {[%emt 0:00:02]} Kg6 {[%emt 0:00:02]} 0-1

[Event "European Online Club-ch-G 2021"]
[Site "Online"]
[Date "2021.03.27"]
[Round "5.10"]
[White "Najer, Evgeniy"]
[Black "Greet, Andrew N"]
[Result "1-0"]
[ECO "C11"]
[WhiteElo "2648"]
[BlackElo "2417"]
[Annotator "ChessBase"]
[PlyCount "67"]
[EventDate "2021.03.27"]
[EventType "team-tourn"]
[EventCountry "NET"]
[SourceTitle "playchess.com"]
[Source "ChessBase"]
[SourceQuality "1"]
[TimeControl "900+5"]

1. d4 {[%emt 0:00:00]} e6 {[%emt 0:00:04]} 2. e4 {[%emt 0:00:05]} d5 {[%emt 0:00:03]} 3. Nc3 {[%emt 0:00:03]} Nf6 {[%emt 0:00:04]} 4. e5 {[%emt 0:00:03]} Nfd7 {[%emt 0:00:03]} 5. f4 {[%emt 0:00:06]} c5 {[%emt 0:00:04]} 6. Nf3 {[%emt 0:00:02]} Nc6 {[%emt 0:00:04]} 7. Be3 {[%emt 0:00:03]} a6 {[%emt 0:00:15]} 8. Ne2 {[%emt 0:00:04]} Qb6 {[%emt 0:01:12]} 9. Qc1 {[%emt 0:00:05]} cxd4 {[%emt 0:02:20]} 10. Nexd4 {[%emt 0:00:05]} Nxd4 {[%emt 0:00:41]} 11. Bxd4 {[%emt 0:00:32]} Bc5 {[%emt 0:00:09]} 12. c3 {[%emt 0:00:02]} Nb8 {[%emt 0:00:13]} 13. Qd2 {[%emt 0:00:39]} Bd7 {[%emt 0:00:35]} 14. O-O-O {[%emt 0:01:25]} Ba4 {[%emt 0:01:47]} 15. Re1 {[%emt 0:00:56]} Nc6 {[%emt 0:00:05]} 16. Bxc5 {[%emt 0:00:10]} Qxc5 {[%emt 0:00:02]} 17. Kb1 {[%emt 0:01:53]} Bb5 {[%emt 0:02:01]} 18. Nd4 {[%emt 0:01:11]} g6 {[%emt 0:01:43]} 19. g4 {[%emt 0:00:49]} O-O-O {[%emt 0:01:35]} 20. f5 {[%emt 0:00:41]} gxf5 {[%emt 0:00:21]} 21. gxf5 {[%emt 0:00:03]} exf5 {[%emt 0:00:05]} 22. Bh3 {[%emt 0:03:07]} Kb8 {[%emt 0:00:04]} 23. Bxf5 {[%emt 0:00:05]} Rde8 {[%emt 0:00:10]} 24. Bd7 {[%emt 0:00:27]} Re7 {[%emt 0:00:53]} 25. Bxc6 {[%emt 0:00:02]} bxc6 {[%emt 0:00:57]} 26. Re3 {[%emt 0:00:33]} Qb6 {[%emt 0:00:32]} 27. Rhe1 {[%emt 0:00:10]} Rd8 {[%emt 0:00:18]} 28. e6 {[%emt 0:01:38]} c5 {[%emt 0:00:06]} 29. exf7 {[%emt 0:00:02]} Qg6+ {[%emt 0:00:31]} 30. Ka1 {[%emt 0:00:25]} Rxe3 {[%emt 0:00:12]} 31. Qxe3 {[%emt 0:00:03]} Qxf7 {[%emt 0:00:17]} 32. Nxb5 {[%emt 0:00:02]} axb5 {[%emt 0:00:03]} 33. Qxc5 {[%emt 0:00:02]} Qb7 {[%emt 0:00:09]} 34. Re7 {[%emt 0:00:22]} 1-0

[Event "European Online Club-ch-G 2021"]
[Site "Online"]
[Date "2021.03.27"]
[Round "5.11"]
[White "Sukandar, Irine Kharisma"]
[Black "Kobalia, Mikhail"]
[Result "0-1"]
[ECO "B85"]
[WhiteElo "2413"]
[BlackElo "2587"]
[Annotator "ChessBase"]
[PlyCount "82"]
[EventDate "2021.03.27"]
[EventType "team-tourn"]
[EventCountry "NET"]
[SourceTitle "playchess.com"]
[Source "ChessBase"]
[SourceQuality "1"]
[TimeControl "900+5"]

1. e4 {[%emt 0:00:00]} c5 {[%emt 0:00:24]} 2. Nf3 {[%emt 0:00:13]} e6 {[%emt 0:00:02]} 3. d4 {[%emt 0:00:15]} cxd4 {[%emt 0:00:02]} 4. Nxd4 {[%emt 0:00:02]} Nc6 {[%emt 0:00:01]} 5. Nc3 {[%emt 0:00:11]} a6 {[%emt 0:00:03]} 6. a3 {[%emt 0:00:13]} d6 {[%emt 0:00:12]} 7. Be3 {[%emt 0:00:10]} Bd7 {[%emt 0:00:07]} 8. Be2 {[%emt 0:00:05]} Nf6 {[%emt 0:00:04]} 9. O-O {[%emt 0:00:03]} Be7 {[%emt 0:00:03]} 10. f4 {[%emt 0:00:24]} O-O {[%emt 0:00:04]} 11. Qe1 {[%emt 0:00:39]} Nxd4 {[%emt 0:00:14]} 12. Bxd4 {[%emt 0:00:02]} Bc6 {[%emt 0:00:02]} 13. Qg3 {[%emt 0:00:08]} b5 {[%emt 0:00:22]} 14. Rae1 {[%emt 0:00:48]} Qb8 {[%emt 0:00:32]} 15. b4 {[%emt 0:01:26]} Qc7 {[%emt 0:01:10]} 16. Kh1 {[%emt 0:00:27]} Rae8 {[%emt 0:00:06]} 17. Bd3 {[%emt 0:00:15]} e5 {[%emt 0:01:28]} 18. fxe5 {[%emt 0:00:22]} Nh5 {[%emt 0:00:02]} 19. Qh3 {[%emt 0:00:54]} dxe5 {[%emt 0:00:04]} 20. Nd5 {[%emt 0:00:53]} Bxd5 {[%emt 0:00:09]} 21. exd5 {[%emt 0:00:03]} exd4 {[%emt 0:00:06]} 22. Qxh5 {[%emt 0:00:16]} g6 {[%emt 0:00:02]} 23. Qg4 {[%emt 0:00:21]} Bd6 {[%emt 0:00:37]} 24. Qxd4 {[%emt 0:03:28]} Bxh2 {[%emt 0:00:28]} 25. Re4 {[%emt 0:00:16]} Rxe4 {[%emt 0:01:54]} 26. Qxe4 {[%emt 0:00:07]} Bd6 {[%emt 0:00:04]} 27. Rf3 {[%emt 0:01:18]} Qd8 {[%emt 0:00:35]} 28. Re3 {[%emt 0:00:39]} Qg5 {[%emt 0:00:04]} 29. Kg1 {[%emt 0:00:26]} Rc8 {[%emt 0:00:20]} 30. Qf3 {[%emt 0:00:08]} Rc3 {[%emt 0:01:18]} 31. Re8+ {[%emt 0:00:41]} Kg7 {[%emt 0:00:04]} 32. Qe4 {[%emt 0:00:54]} Rxa3 {[%emt 0:02:37]} 33. Qd4+ {[%emt 0:00:05]} f6 {[%emt 0:00:02]} 34. Re3 {[%emt 0:00:45]} Ra1+ {[%emt 0:01:07]} 35. Bf1 {[%emt 0:00:09]} Qf4 {[%emt 0:00:45]} 36. Re7+ {[%emt 0:00:40]} Kh6 {[%emt 0:00:17]} 37. Qxa1 {[%emt 0:00:05]} Bxe7 {[%emt 0:00:12]} 38. Qxa6 {[%emt 0:00:02]} Bxb4 {[%emt 0:00:12]} 39. Qxb5 {[%emt 0:00:04]} Qd4+ {[%emt 0:00:08]} 40. Kh1 {[%emt 0:00:14]} Qh4+ {[%emt 0:00:23]} 41. Kg1 {[%emt 0:00:02]} Bc3 {[%emt 0:00:02]} 0-1

[Event "European Online Club-ch-G 2021"]
[Site "Online"]
[Date "2021.03.27"]
[Round "5.12"]
[White "Murzin, Volodar"]
[Black "Derakhshani, Borna"]
[Result "1-0"]
[ECO "B13"]
[WhiteElo "2478"]
[BlackElo "2373"]
[Annotator "ChessBase"]
[PlyCount "43"]
[EventDate "2021.03.27"]
[EventType "team-tourn"]
[EventCountry "NET"]
[SourceTitle "playchess.com"]
[Source "ChessBase"]
[SourceQuality "1"]
[TimeControl "900+5"]

1. e4 {[%emt 0:00:00]} c6 {[%emt 0:00:02]} 2. d4 {[%emt 0:00:05]} d5 {[%emt 0:00:01]} 3. exd5 {[%emt 0:00:02]} cxd5 {[%emt 0:00:01]} 4. Bd3 {[%emt 0:00:02]} Nc6 {[%emt 0:00:03]} 5. c3 {[%emt 0:00:02]} Nf6 {[%emt 0:00:02]} 6. Nf3 {[%emt 0:01:13]} Qc7 {[%emt 0:00:05]} 7. O-O {[%emt 0:00:02]} Bg4 {[%emt 0:00:03]} 8. Nbd2 {[%emt 0:00:16]} e6 {[%emt 0:00:08]} 9. Re1 {[%emt 0:00:09]} Bd6 {[%emt 0:00:09]} 10. Nf1 {[%emt 0:00:11]} O-O {[%emt 0:01:31]} 11. Bg5 {[%emt 0:00:34]} e5 {[%emt 0:01:54]} 12. Bxf6 {[%emt 0:01:01]} gxf6 {[%emt 0:00:46]} 13. Ne3 {[%emt 0:00:05]} Be6 {[%emt 0:01:09]} 14. dxe5 {[%emt 0:00:23]} Nxe5 {[%emt 0:00:18]} 15. Nxe5 {[%emt 0:02:24]} fxe5 {[%emt 0:00:24]} 16. Bf5 {[%emt 0:00:07]} Qd7 {[%emt 0:01:09]} 17. Nxd5 {[%emt 0:02:51]} Kh8 {[%emt 0:01:00]} 18. Nf6 {[%emt 0:01:06]} Qe7 {[%emt 0:00:19]} 19. Qh5 {[%emt 0:00:20]} Bxf5 {[%emt 0:01:29]} 20. Qxf5 {[%emt 0:00:04]} Kg7 {[%emt 0:00:00]} 21. Qg5+ {[%emt 0:00:02]} Kh8 {[%emt 0:00:02]} 22. Qh6 {[%emt 0:00:02]} 1-0

[Event "European Online Club-ch-G 2021"]
[Site "Online"]
[Date "2021.03.27"]
[Round "5.13"]
[White "Borhy, Marcell"]
[Black "Flear, Glenn C"]
[Result "1-0"]
[ECO "E04"]
[WhiteElo "2392"]
[BlackElo "2431"]
[Annotator "NA"]
[PlyCount "73"]
[EventDate "2021.03.27"]
[EventType "team-tourn"]
[EventCountry "NET"]
[SourceTitle "playchess.com"]
[Source "ChessBase"]
[SourceQuality "1"]
[TimeControl "900+5"]

1. c4 {[%emt 0:00:00]} e6 {[%emt 0:00:04]} 2. Nf3 {[%emt 0:00:03]} d5 {[%emt 0:00:03]} 3. d4 {[%emt 0:00:01]} Nf6 {[%emt 0:00:04]} 4. g3 {[%emt 0:00:02]} c6 {[%emt 0:00:13]} 5. Bg2 {[%emt 0:00:03]} Nbd7 {[%emt 0:00:04]} 6. O-O {[%emt 0:00:03]} dxc4 {[%emt 0:00:04]} 7. a4 {[%emt 0:00:02]} a5 {[%emt 0:00:02]} 8. Qc2 {[%emt 0:00:02]} Nb6 {[%emt 0:00:14]} 9. e4 {[%emt 0:00:38]} Be7 {[%emt 0:00:36]} 10. Rd1 {[%emt 0:00:09]} O-O {[%emt 0:00:16]} 11. Na3 {[%emt 0:01:24]} h6 {[%emt 0:00:12]} 12. Ne5 {[%emt 0:00:03]} Nfd7 {[%emt 0:01:53]} 13. Nexc4 {[%emt 0:01:59]} Nxc4 {[%emt 0:00:35]} 14. Nxc4 {[%emt 0:00:49]} b6 {[%emt 0:00:54]} 15. Be3 {[%emt 0:00:31]} Bb7 {[%emt 0:01:50]} 16. Qb3 {[%emt 0:00:53]} Bb4 {[%emt 0:00:46]} 17. Rac1 {[%emt 0:00:15]} Rc8 {[%emt 0:00:39]} 18. Bd2 {[%emt 0:00:59]} b5 {[%emt 0:02:13]} 19. Na3 {[%emt 0:01:14]} bxa4 {[%emt 0:00:41]} 20. Qxa4 {[%emt 0:00:11]} Nb6 {[%emt 0:01:13]} 21. Qb3 {[%emt 0:00:19]} Qe7 {[%emt 0:00:39]} 22. Bxb4 {[%emt 0:02:14]} Qxb4 {[%emt 0:00:04]} 23. Qxb4 {[%emt 0:00:50]} axb4 {[%emt 0:00:04]} 24. Nc2 {[%emt 0:00:02]} b3 {[%emt 0:00:05]} 25. Na1 {[%emt 0:00:02]} Na4 {[%emt 0:00:21]} 26. Rd2 {[%emt 0:01:17]} c5 {[%emt 0:00:07]} 27. Rc4 {[%emt 0:01:04]} Bc6 {[%emt 0:00:41]} 28. dxc5 {[%emt 0:00:38]} Rfd8 {[%emt 0:01:28]} 29. Nxb3 {[%emt 0:00:51]} Rxd2 {[%emt 0:00:06]} 30. Nxd2 {[%emt 0:00:01]} Nxb2 {[%emt 0:00:02]} 31. Rc2 {[%emt 0:00:03]} Na4 {[%emt 0:00:03]} 32. f3 {[%emt 0:00:33]} Bb5 {[%emt 0:00:53]} 33. Nb3 {[%emt 0:00:03]} Bd3 {[%emt 0:00:04]} 34. Rc1 {[%emt 0:00:06]} Rb8 {[%emt 0:00:21]} 35. Nd4 {[%emt 0:00:25]} Rb4 {[%emt 0:00:09]} 36. Nc6 {[%emt 0:00:02]} Rb5 {[%emt 0:00:07]} 37. Ne5 {[%emt 0:00:04]} 1-0

[Event "European Online Club-ch-G 2021"]
[Site "Online"]
[Date "2021.03.27"]
[Round "5.14"]
[White "Boyer, Mahel"]
[Black "Krstulovic, Alex"]
[Result "0-1"]
[ECO "D10"]
[WhiteElo "2333"]
[BlackElo "2387"]
[Annotator "NA"]
[PlyCount "112"]
[EventDate "2021.03.27"]
[EventType "team-tourn"]
[EventCountry "NET"]
[SourceTitle "playchess.com"]
[Source "ChessBase"]
[SourceQuality "1"]
[TimeControl "900+5"]

1. d4 {[%emt 0:00:00]} d5 {[%emt 0:00:09]} 2. c4 {[%emt 0:00:07]} c6 {[%emt 0:00:01]} 3. cxd5 {[%emt 0:00:05]} cxd5 {[%emt 0:00:02]} 4. Bf4 {[%emt 0:00:02]} Nc6 {[%emt 0:00:15]} 5. e3 {[%emt 0:00:02]} e6 {[%emt 0:00:02]} 6. Nc3 {[%emt 0:00:02]} Bd6 {[%emt 0:00:02]} 7. Bxd6 {[%emt 0:00:02]} Qxd6 {[%emt 0:00:01]} 8. Bd3 {[%emt 0:00:00]} Nge7 {[%emt 0:00:02]} 9. Nf3 {[%emt 0:00:40]} h6 {[%emt 0:03:07]} 10. O-O {[%emt 0:00:06]} O-O {[%emt 0:00:02]} 11. Rc1 {[%emt 0:00:01]} Bd7 {[%emt 0:00:39]} 12. Nb5 {[%emt 0:00:32]} Qb8 {[%emt 0:00:06]} 13. a3 {[%emt 0:00:09]} a6 {[%emt 0:00:09]} 14. Nc3 {[%emt 0:00:03]} e5 {[%emt 0:00:57]} 15. dxe5 {[%emt 0:00:11]} Nxe5 {[%emt 0:00:00]} 16. Be2 {[%emt 0:00:25]} Rd8 {[%emt 0:01:17]} 17. Nd4 {[%emt 0:03:10]} Qd6 {[%emt 0:00:14]} 18. Qb3 {[%emt 0:00:32]} Bg4 {[%emt 0:01:22]} 19. h3 {[%emt 0:00:46]} Bxe2 {[%emt 0:00:05]} 20. Ndxe2 {[%emt 0:00:01]} Rac8 {[%emt 0:01:17]} 21. Rfd1 {[%emt 0:00:03]} b5 {[%emt 0:00:27]} 22. e4 {[%emt 0:02:55]} Qg6 {[%emt 0:03:15]} 23. Nxd5 {[%emt 0:01:41]} Nxd5 {[%emt 0:00:06]} 24. Rxc8 {[%emt 0:00:09]} Rxc8 {[%emt 0:00:00]} 25. exd5 {[%emt 0:01:04]} Qc2 {[%emt 0:00:46]} 26. Nd4 {[%emt 0:00:23]} Qxb3 {[%emt 0:00:15]} 27. Nxb3 {[%emt 0:00:00]} Nc4 {[%emt 0:00:09]} 28. Nd4 {[%emt 0:01:28]} Nxb2 {[%emt 0:00:27]} 29. Re1 {[%emt 0:00:02]} Nc4 {[%emt 0:00:06]} 30. Nc6 {[%emt 0:00:01]} Kf8 {[%emt 0:00:12]} 31. a4 {[%emt 0:00:02]} bxa4 {[%emt 0:00:15]} 32. Rd1 {[%emt 0:00:30]} a3 {[%emt 0:00:13]} 33. Rc1 {[%emt 0:00:34]} Ne5 {[%emt 0:00:33]} 34. Rc3 {[%emt 0:01:05]} Nxc6 {[%emt 0:00:31]} 35. dxc6 {[%emt 0:00:00]} a2 {[%emt 0:00:01]} 36. Ra3 {[%emt 0:00:03]} Rxc6 {[%emt 0:00:00]} 37. Rxa2 {[%emt 0:00:01]} Ke7 {[%emt 0:00:01]} 38. Rb2 {[%emt 0:00:03]} Rc7 {[%emt 0:00:20]} 39. Ra2 {[%emt 0:00:27]} Ra7 {[%emt 0:00:02]} 40. Ra5 {[%emt 0:00:01]} Kd6 {[%emt 0:00:02]} 41. g4 {[%emt 0:00:14]} Kc6 {[%emt 0:00:02]} 42. Kg2 {[%emt 0:00:02]} Kb6 {[%emt 0:00:02]} 43. Ra1 {[%emt 0:00:01]} a5 {[%emt 0:00:01]} 44. Rb1+ {[%emt 0:00:01]} Kc5 {[%emt 0:00:02]} 45. f4 {[%emt 0:00:39]} Kc4 {[%emt 0:00:06]} 46. g5 {[%emt 0:00:03]} a4 {[%emt 0:00:04]} 47. Kg3 {[%emt 0:00:06]} a3 {[%emt 0:00:11]} 48. Ra1 {[%emt 0:00:07]} a2 {[%emt 0:00:03]} 49. h4 {[%emt 0:00:12]} h5 {[%emt 0:00:04]} 50. f5 {[%emt 0:00:02]} g6 {[%emt 0:00:02]} 51. Kf4 {[%emt 0:00:03]} Kb3 {[%emt 0:00:02]} 52. Ke5 {[%emt 0:00:10]} Ra5+ {[%emt 0:00:07]} 53. Kd6 {[%emt 0:00:01]} Rxf5 {[%emt 0:00:03]} 54. Re1 {[%emt 0:00:10]} Rf2 {[%emt 0:00:02]} 55. Ke7 {[%emt 0:00:09]} Kb2 {[%emt 0:00:02]} 56. Re2+ {[%emt 0:00:03]} Rxe2+ {[%emt 0:00:04]} 0-1

[Event "European Online Club-ch-G 2021"]
[Site "Online"]
[Date "2021.03.27"]
[Round "5.15"]
[White "Juhasz, Agoston"]
[Black "Collier, Timothy"]
[Result "1/2-1/2"]
[ECO "B12"]
[WhiteElo "2356"]
[BlackElo "2074"]
[Annotator "NA"]
[PlyCount "124"]
[EventDate "2021.03.27"]
[EventType "team-tourn"]
[EventCountry "NET"]
[SourceTitle "playchess.com"]
[Source "ChessBase"]
[SourceQuality "1"]
[TimeControl "900+5"]

1. e4 {[%emt 0:00:00]} c6 {[%emt 0:00:52]} 2. d4 {[%emt 0:00:07]} d5 {[%emt 0:00:04]} 3. e5 {[%emt 0:00:01]} Bf5 {[%emt 0:00:04]} 4. Nf3 {[%emt 0:00:06]} e6 {[%emt 0:00:02]} 5. Be2 {[%emt 0:00:02]} c5 {[%emt 0:00:03]} 6. Be3 {[%emt 0:00:48]} Qb6 {[%emt 0:00:05]} 7. Nc3 {[%emt 0:00:27]} c4 {[%emt 0:00:15]} 8. Qc1 {[%emt 0:00:57]} Bb4 {[%emt 0:01:01]} 9. O-O {[%emt 0:00:15]} Ne7 {[%emt 0:00:13]} 10. Bd2 {[%emt 0:01:53]} Bxc3 {[%emt 0:01:05]} 11. Bxc3 {[%emt 0:00:12]} Bg4 {[%emt 0:00:02]} 12. b3 {[%emt 0:00:31]} Bxf3 {[%emt 0:00:13]} 13. Bxf3 {[%emt 0:00:05]} cxb3 {[%emt 0:00:09]} 14. axb3 {[%emt 0:00:15]} Nbc6 {[%emt 0:00:02]} 15. Qd2 {[%emt 0:00:21]} Nf5 {[%emt 0:00:09]} 16. Rfd1 {[%emt 0:00:07]} O-O {[%emt 0:00:05]} 17. Be2 {[%emt 0:02:47]} f6 {[%emt 0:01:23]} 18. exf6 {[%emt 0:01:41]} Rxf6 {[%emt 0:00:30]} 19. Bg4 {[%emt 0:00:29]} Raf8 {[%emt 0:00:38]} 20. Ba5 {[%emt 0:01:18]} Qxd4 {[%emt 0:03:13]} 21. Bxf5 {[%emt 0:02:42]} Qxd2 {[%emt 0:00:55]} 22. Bxe6+ {[%emt 0:00:24]} Rxe6 {[%emt 0:00:06]} 23. Bxd2 {[%emt 0:00:02]} d4 {[%emt 0:00:18]} 24. Re1 {[%emt 0:00:20]} Rfe8 {[%emt 0:00:08]} 25. Kf1 {[%emt 0:00:05]} Kf7 {[%emt 0:00:03]} 26. f3 {[%emt 0:00:19]} Rxe1+ {[%emt 0:00:36]} 27. Bxe1 {[%emt 0:00:02]} Re5 {[%emt 0:00:16]} 28. Rd1 {[%emt 0:00:15]} Ke6 {[%emt 0:00:06]} 29. Rd2 {[%emt 0:00:21]} b5 {[%emt 0:00:10]} 30. Bf2 {[%emt 0:00:05]} Kd5 {[%emt 0:00:07]} 31. c3 {[%emt 0:00:09]} a5 {[%emt 0:00:09]} 32. Bxd4 {[%emt 0:00:05]} Nxd4 {[%emt 0:00:03]} 33. Rxd4+ {[%emt 0:00:00]} Kc5 {[%emt 0:00:04]} 34. Kf2 {[%emt 0:00:12]} g5 {[%emt 0:00:14]} 35. Rd7 {[%emt 0:00:06]} h5 {[%emt 0:00:04]} 36. Rc7+ {[%emt 0:00:14]} Kb6 {[%emt 0:00:05]} 37. Rc8 {[%emt 0:00:05]} Kb7 {[%emt 0:00:41]} 38. Rd8 {[%emt 0:00:09]} a4 {[%emt 0:00:04]} 39. bxa4 {[%emt 0:00:02]} bxa4 {[%emt 0:00:02]} 40. Rd1 {[%emt 0:00:05]} Kb6 {[%emt 0:00:08]} 41. g3 {[%emt 0:00:08]} Rc5 {[%emt 0:00:13]} 42. Rc1 {[%emt 0:00:08]} Kb5 {[%emt 0:00:06]} 43. Ke3 {[%emt 0:00:04]} Kc4 {[%emt 0:00:05]} 44. f4 {[%emt 0:00:04]} gxf4+ {[%emt 0:00:03]} 45. gxf4 {[%emt 0:00:00]} a3 {[%emt 0:00:18]} 46. Ke4 {[%emt 0:00:03]} a2 {[%emt 0:00:10]} 47. f5 {[%emt 0:00:04]} Kb3 {[%emt 0:00:03]} 48. f6 {[%emt 0:00:08]} Rxc3 {[%emt 0:01:33]} 49. Rxc3+ {[%emt 0:00:12]} Kxc3 {[%emt 0:00:03]} 50. f7 {[%emt 0:00:01]} a1=Q {[%emt 0:00:02]} 51. f8=Q {[%emt 0:00:04]} Qe1+ {[%emt 0:00:41]} 52. Kd5 {[%emt 0:00:03]} Qd2+ {[%emt 0:00:15]} 53. Kc5 {[%emt 0:00:09]} Qd4+ {[%emt 0:00:13]} 54. Kb5 {[%emt 0:00:06]} Qd3+ {[%emt 0:00:34]} 55. Ka5 {[%emt 0:00:06]} Qd5+ {[%emt 0:00:05]} 56. Kb6 {[%emt 0:00:02]} Qb3+ {[%emt 0:00:13]} 57. Kc6 {[%emt 0:00:02]} Qa4+ {[%emt 0:00:03]} 58. Kd5 {[%emt 0:00:07]} Qc4+ {[%emt 0:00:08]} 59. Ke5 {[%emt 0:00:05]} Qe2+ {[%emt 0:00:08]} 60. Kd5 {[%emt 0:00:03]} Qd2+ {[%emt 0:00:10]} 61. Kc5 {[%emt 0:00:09]} Qd4+ {[%emt 0:00:18]} 62. Kb5 {[%emt 0:00:04]} Qc4+ {[%emt 0:00:03]} 1/2-1/2

[Event "European Online Club-ch-G 2021"]
[Site "Online"]
[Date "2021.03.27"]
[Round "5.16"]
[White "Hmamouche, Youssef"]
[Black "Ongut, Tamas Gunes"]
[Result "0-1"]
[ECO "E61"]
[WhiteElo "1926"]
[BlackElo "2314"]
[Annotator "NA"]
[PlyCount "90"]
[EventDate "2021.03.27"]
[EventType "team-tourn"]
[EventCountry "NET"]
[SourceTitle "playchess.com"]
[Source "ChessBase"]
[SourceQuality "1"]
[TimeControl "900+5"]

1. d4 {[%emt 0:00:00]} Nf6 {[%emt 0:00:04]} 2. Nf3 {[%emt 0:00:04]} g6 {[%emt 0:00:03]} 3. c4 {[%emt 0:00:03]} Bg7 {[%emt 0:00:03]} 4. Nc3 {[%emt 0:00:03]} O-O {[%emt 0:00:05]} 5. Bg5 {[%emt 0:00:05]} c5 {[%emt 0:00:33]} 6. d5 {[%emt 0:00:10]} h6 {[%emt 0:00:18]} 7. Bh4 {[%emt 0:00:03]} d6 {[%emt 0:00:02]} 8. e3 {[%emt 0:00:08]} g5 {[%emt 0:01:46]} 9. Bg3 {[%emt 0:00:05]} Nh5 {[%emt 0:00:02]} 10. Qc2 {[%emt 0:00:14]} Nxg3 {[%emt 0:00:27]} 11. hxg3 {[%emt 0:00:05]} f5 {[%emt 0:00:15]} 12. Be2 {[%emt 0:01:39]} Nd7 {[%emt 0:01:18]} 13. g4 {[%emt 0:00:40]} b5 {[%emt 0:01:52]} 14. cxb5 {[%emt 0:01:31]} Nb6 {[%emt 0:00:13]} 15. a4 {[%emt 0:02:25]} e6 {[%emt 0:01:26]} 16. dxe6 {[%emt 0:00:08]} fxg4 {[%emt 0:01:26]} 17. Rxh6 {[%emt 0:02:30]} Bxh6 {[%emt 0:01:43]} 18. Qg6+ {[%emt 0:00:03]} Bg7 {[%emt 0:00:02]} 19. Nxg5 {[%emt 0:01:57]} Rf6 {[%emt 0:00:40]} 20. Qh7+ {[%emt 0:00:13]} Kf8 {[%emt 0:00:03]} 21. Nce4 {[%emt 0:00:10]} Bxe6 {[%emt 0:00:29]} 22. a5 {[%emt 0:02:28]} Bg8 {[%emt 0:00:21]} 23. Nxf6 {[%emt 0:00:54]} Qxf6 {[%emt 0:00:14]} 24. Qe4 {[%emt 0:00:09]} Re8 {[%emt 0:00:17]} 25. Qxg4 {[%emt 0:00:12]} Qxb2 {[%emt 0:00:30]} 26. Qf5+ {[%emt 0:00:09]} Qf6 {[%emt 0:00:02]} 27. Qxf6+ {[%emt 0:00:07]} Bxf6 {[%emt 0:00:02]} 28. Rb1 {[%emt 0:00:14]} Bxg5 {[%emt 0:00:05]} 29. axb6 {[%emt 0:00:02]} axb6 {[%emt 0:00:01]} 30. Kd2 {[%emt 0:00:14]} d5 {[%emt 0:00:05]} 31. f4 {[%emt 0:00:04]} Bf6 {[%emt 0:00:02]} 32. g4 {[%emt 0:00:01]} d4 {[%emt 0:00:02]} 33. exd4 {[%emt 0:00:07]} Bxd4 {[%emt 0:00:02]} 34. Bd3 {[%emt 0:00:36]} c4 {[%emt 0:00:08]} 35. Bf5 {[%emt 0:00:09]} Be3+ {[%emt 0:00:08]} 36. Kc2 {[%emt 0:00:01]} Be6 {[%emt 0:00:04]} 37. Bxe6 {[%emt 0:00:10]} Rxe6 {[%emt 0:00:02]} 38. Kc3 {[%emt 0:00:02]} Re4 {[%emt 0:00:04]} 39. Rf1 {[%emt 0:00:09]} Rxf4 {[%emt 0:00:04]} 40. Rxf4+ {[%emt 0:00:02]} Bxf4 {[%emt 0:00:02]} 41. Kxc4 {[%emt 0:00:01]} Kg7 {[%emt 0:00:02]} 42. Kd5 {[%emt 0:00:09]} Kg6 {[%emt 0:00:02]} 43. Ke4 {[%emt 0:00:12]} Bc7 {[%emt 0:00:02]} 44. Kd5 {[%emt 0:00:03]} Bh2 {[%emt 0:00:05]} 45. Kc6 {[%emt 0:00:05]} Bg1 {[%emt 0:00:02]} 0-1